[Event "POL-chT DMP Ekstraliga 2019"]
[Site "Katowice"]
[Date "2019.08.31"]
[Round "4.22"]
[White "Kaczmarek, Aleksander"]
[Black "Nasuta, Grzegorz"]
[Result "1/2-1/2"]
[ECO "C11"]
[WhiteElo "2389"]
[BlackElo "2533"]
[Annotator "ChessBase"]
[PlyCount "169"]
[EventDate "2019.08.28"]
[EventType "team-tourn"]
[EventCountry "POL"]
[SourceTitle "playchess.com"]
[Source "ChessBase"]
[SourceQuality "1"]
[TimeControl "40/5400+30:1800+30"]

1. e4 {[%emt 0:00:00]} e6 {[%emt 0:00:00]} 2. Nf3 {[%emt 0:00:00]} d5 {[%emt 0:00:00]} 3. Nc3 {[%emt 0:00:04]} Nf6 {[%emt 0:00:06]} 4. e5 {[%emt 0:00:04]} Nfd7 {[%emt 0:00:07]} 5. d4 {[%emt 0:00:06]} c5 {[%emt 0:00:05]} 6. dxc5 {[%emt 0:00:18]} Nc6 {[%emt 0:00:35]} 7. Bf4 {[%emt 0:00:11]} h6 {[%emt 0:07:52]} 8. Bg3 {[%emt 0:02:37]} Nxc5 {[%emt 0:02:54]} 9. Bd3 {[%emt 0:04:14]} Be7 {[%emt 0:09:44]} 10. O-O {[%emt 0:00:18]} a6 {[%emt 0:01:52]} 11. a3 {[%emt 0:07:02]} Bd7 {[%emt 0:02:52]} 12. Re1 {[%emt 0:04:40]} Nxd3 {[%emt 0:12:41]} 13. cxd3 {[%emt 0:01:26]} O-O {[%emt 0:02:37]} 14. Qd2 {[%emt 0:07:26]} b5 {[%emt 0:15:24]} 15. Qf4 {[%emt 0:02:37]} b4 {[%emt 0:04:01]} 16. axb4 {[%emt 0:01:55]} Nxb4 {[%emt 0:00:51]} 17. Rad1 {[%emt 0:00:07]} Bb5 {[%emt 0:03:08]} 18. Re3 {[%emt 0:07:50]} d4 {[%emt 0:26:05]} 19. Nxd4 {[%emt 0:10:30]} Bg5 {[%emt 0:01:41]} 20. Qe4 {[%emt 0:04:49]} Bxe3 {[%emt 0:00:14]} 21. fxe3 {[%emt 0:04:02]} Nd5 {[%emt 0:01:09]} 22. Bh4 {[%emt 0:02:48]} Qd7 {[%emt 0:02:15]} 23. Qf3 {[%emt 0:03:28]} Ne7 {[%emt 0:03:15]} 24. Ne4 {[%emt 0:06:52]} Ng6 {[%emt 0:00:06]} 25. Bf6 {[%emt 0:03:18]} Qd5 {[%emt 0:01:33]} 26. Qg4 {[%emt 0:04:27]} Rfc8 {[%emt 0:01:12]} 27. h4 {[%emt 0:01:16]} h5 {[%emt 0:00:35]} 28. Qxh5 {[%emt 0:00:53]} Bxd3 {[%emt 0:00:08]} 29. Ng5 {[%emt 0:05:01]} Nxe5 {[%emt 0:00:41]} 30. Nf5 {[%emt 0:03:22]} Bxf5 {[%emt 0:00:36]} 31. Rxd5 {[%emt 0:00:10]} Rc1+ {[%emt 0:00:37]} 32. Kh2 {[%emt 0:03:37]} Bg6 {[%emt 0:00:21]} 33. Qe2 {[%emt 0:00:12]} gxf6 {[%emt 0:00:14]} 34. Rxe5 {[%emt 0:00:18]} fxe5 {[%emt 0:00:13]} 35. h5 {[%emt 0:00:09]} f6 {[%emt 0:00:55]} 36. Qf3 {[%emt 0:02:27]} Ra7 {[%emt 0:00:01]} 37. Qxf6 {[%emt 0:00:57]} Bxh5 {[%emt 0:00:22]} 38. Qxe6+ {[%emt 0:00:19]} Bf7 {[%emt 0:00:33]} 39. Qxe5 {[%emt 0:00:15]} Rac7 {[%emt 0:01:15]} 40. e4 {[%emt 0:00:00]} R1c6 {[%emt 0:00:00]} 41. Qf4 {[%emt 0:05:46]} Re7 {[%emt 0:02:23]} 42. e5 {[%emt 0:01:56]} Rg6 {[%emt 0:06:32]} 43. Ne4 {[%emt 0:02:09]} Kg7 {[%emt 0:07:02]} 44. Nf6 {[%emt 0:04:48]} Rxe5 {[%emt 0:01:29]} 45. Qxe5 {[%emt 0:00:16]} Rxf6 {[%emt 0:00:04]} 46. g4 {[%emt 0:01:42]} Kg6 {[%emt 0:00:11]} 47. Kg3 {[%emt 0:00:12]} Re6 {[%emt 0:00:30]} 48. Qf5+ {[%emt 0:00:11]} Kg7 {[%emt 0:00:08]} 49. Qg5+ {[%emt 0:00:30]} Rg6 {[%emt 0:04:27]} 50. Qe5+ {[%emt 0:00:11]} Kh7 {[%emt 0:01:19]} 51. Kf4 {[%emt 0:03:28]} Kg8 {[%emt 0:05:51]} 52. Kf5 {[%emt 0:00:44]} Kh7 {[%emt 0:00:10]} 53. Qc7 {[%emt 0:02:02]} Kg7 {[%emt 0:00:14]} 54. Qc8 {[%emt 0:01:40]} Rf6+ {[%emt 0:01:55]} 55. Ke5 {[%emt 0:00:09]} Rg6 {[%emt 0:00:05]} 56. Qd7 {[%emt 0:01:36]} Kg8 {[%emt 0:00:23]} 57. Qd8+ {[%emt 0:00:17]} Kg7 {[%emt 0:00:03]} 58. Qc8 {[%emt 0:00:13]} Bg8 {[%emt 0:00:16]} 59. Qd8 {[%emt 0:02:33]} Bf7 {[%emt 0:00:21]} 60. g5 {[%emt 0:00:06]} Re6+ {[%emt 0:03:15]} 61. Kf5 {[%emt 0:00:17]} Rg6 {[%emt 0:00:04]} 62. Qc8 {[%emt 0:00:11]} Rd6 {[%emt 0:00:33]} 63. Qc3+ {[%emt 0:00:10]} Kg8 {[%emt 0:00:03]} 64. Qb4 {[%emt 0:03:41]} Rg6 {[%emt 0:00:24]} 65. Qc5 {[%emt 0:02:42]} Kg7 {[%emt 0:00:50]} 66. Ke4 {[%emt 0:00:13]} Kg8 {[%emt 0:01:03]} 67. Kd4 {[%emt 0:00:18]} Kg7 {[%emt 0:00:05]} 68. Qe7 {[%emt 0:00:06]} Re6 {[%emt 0:00:29]} 69. Qd8 {[%emt 0:00:09]} Rg6 {[%emt 0:00:30]} 70. b4 {[%emt 0:00:56]} Re6 {[%emt 0:00:14]} 71. Qc8 {[%emt 0:02:50]} Rg6 {[%emt 0:00:43]} 72. Ke3 {[%emt 0:00:08]} Re6+ {[%emt 0:00:21]} 73. Kf4 {[%emt 0:00:05]} Rg6 {[%emt 0:00:13]} 74. Kf5 {[%emt 0:00:03]} Rd6 {[%emt 0:00:19]} 75. Qc3+ {[%emt 0:00:41]} Kg8 {[%emt 0:00:05]} 76. Qg3 {[%emt 0:00:12]} Rg6 {[%emt 0:01:25]} 77. Qe5 {[%emt 0:00:19]} Rb6 {[%emt 0:00:28]} 78. Qd4 {[%emt 0:01:18]} Rg6 {[%emt 0:00:27]} 79. Qd8+ {[%emt 0:04:23]} Kg7 {[%emt 0:00:05]} 80. Qb8 {[%emt 0:00:17]} Be6+ {[%emt 0:00:15]} 81. Ke5 {[%emt 0:00:21]} Bf7 {[%emt 0:00:03]} 82. Qc8 {[%emt 0:00:55]} Bg8 {[%emt 0:00:56]} 83. Kf5 {[%emt 0:01:48]} Bf7 {[%emt 0:00:04]} 84. Qd7 {[%emt 0:00:05]} Kg8 {[%emt 0:00:18]} 85. Qd8+ {[%emt 0:01:25]} 1/2-1/2

[Event "POL-chT DMP Ekstraliga 2019"]
[Site "Katowice"]
[Date "2019.08.31"]
[Round "4.23"]
[White "Jakubowski, Krzysztof"]
[Black "Mikrut, Dariusz"]
[Result "1/2-1/2"]
[ECO "B26"]
[WhiteElo "2518"]
[BlackElo "2375"]
[Annotator "ChessBase"]
[PlyCount "134"]
[EventDate "2019.08.28"]
[EventType "team-tourn"]
[EventCountry "POL"]
[SourceTitle "playchess.com"]
[Source "ChessBase"]
[SourceQuality "1"]
[TimeControl "40/5400+30:1800+30"]

1. e4 {[%emt 0:00:00]} c5 {[%emt 0:00:25]} 2. Nc3 {[%emt 0:00:00]} Nc6 {[%emt 0:00:23]} 3. g3 {[%emt 0:00:03]} g6 {[%emt 0:00:03]} 4. Bg2 {[%emt 0:00:06]} Bg7 {[%emt 0:00:05]} 5. d3 {[%emt 0:00:06]} d6 {[%emt 0:00:03]} 6. Be3 {[%emt 0:00:06]} e5 {[%emt 0:00:04]} 7. Qd2 {[%emt 0:00:07]} Nge7 {[%emt 0:00:05]} 8. Bh6 {[%emt 0:01:08]} Bxh6 {[%emt 0:03:52]} 9. Qxh6 {[%emt 0:01:00]} Nd4 {[%emt 0:00:07]} 10. O-O-O {[%emt 0:00:39]} Be6 {[%emt 0:00:06]} 11. Kb1 {[%emt 0:00:21]} b5 {[%emt 0:04:10]} 12. Nd5 {[%emt 0:13:54]} Bxd5 {[%emt 0:07:51]} 13. exd5 {[%emt 0:01:06]} Nef5 {[%emt 0:11:46]} 14. Qd2 {[%emt 0:00:48]} b4 {[%emt 0:00:23]} 15. h4 {[%emt 0:07:54]} Rb8 {[%emt 0:06:53]} 16. h5 {[%emt 0:03:53]} Qa5 {[%emt 0:07:46]} 17. hxg6 {[%emt 0:02:44]} fxg6 {[%emt 0:00:09]} 18. Ne2 {[%emt 0:04:21]} Nxe2 {[%emt 0:12:38]} 19. Qxe2 {[%emt 0:00:10]} Rb6 {[%emt 0:07:21]} 20. Be4 {[%emt 0:13:02]} O-O {[%emt 0:12:34]} 21. Bxf5 {[%emt 0:01:27]} Rxf5 {[%emt 0:00:05]} 22. Qg4 {[%emt 0:03:16]} Ra6 {[%emt 0:05:11]} 23. Qc4 {[%emt 0:00:28]} b3 {[%emt 0:03:49]} 24. Qxb3 {[%emt 0:08:22]} Rb6 {[%emt 0:00:05]} 25. Qc4 {[%emt 0:00:04]} Qa3 {[%emt 0:01:20]} 26. b3 {[%emt 0:00:15]} Ra6 {[%emt 0:09:04]} 27. Rdf1 {[%emt 0:06:32]} Qxa2+ {[%emt 0:00:40]} 28. Kc1 {[%emt 0:00:20]} Rb6 {[%emt 0:01:12]} 29. Qh4 {[%emt 0:06:23]} Qa1+ {[%emt 0:00:46]} 30. Kd2 {[%emt 0:00:05]} Qa5+ {[%emt 0:00:08]} 31. Ke2 {[%emt 0:01:06]} Rb7 {[%emt 0:00:08]} 32. Ra1 {[%emt 0:00:26]} Qb6 {[%emt 0:02:16]} 33. Qc4 {[%emt 0:02:49]} Qc7 {[%emt 0:00:45]} 34. Qa6 {[%emt 0:01:36]} Qf7 {[%emt 0:01:06]} 35. Rh2 {[%emt 0:01:14]} Qxd5 {[%emt 0:00:12]} 36. Qc4 {[%emt 0:01:20]} Qf7 {[%emt 0:00:23]} 37. Ra6 {[%emt 0:00:36]} Rf6 {[%emt 0:02:45]} 38. Rc6 {[%emt 0:01:35]} h5 {[%emt 0:00:49]} 39. Rc8+ {[%emt 0:04:15]} Kg7 {[%emt 0:00:07]} 40. g4 {[%emt 0:00:00]} Qxc4 {[%emt 0:00:00]} 41. dxc4 {[%emt 0:01:23]} hxg4 {[%emt 0:01:41]} 42. Rch8 {[%emt 0:00:39]} Rff7 {[%emt 0:00:19]} 43. R8h4 {[%emt 0:00:12]} g3 {[%emt 0:00:26]} 44. fxg3 {[%emt 0:00:06]} Kf6 {[%emt 0:00:11]} 45. Ke3 {[%emt 0:02:02]} Ke6 {[%emt 0:00:35]} 46. Rh8 {[%emt 0:00:27]} a5 {[%emt 0:05:54]} 47. Rg8 {[%emt 0:05:25]} Kf5 {[%emt 0:03:23]} 48. Rd2 {[%emt 0:02:27]} Rbd7 {[%emt 0:00:25]} 49. Ra8 {[%emt 0:00:57]} Kg4 {[%emt 0:04:25]} 50. Rxa5 {[%emt 0:00:13]} g5 {[%emt 0:05:18]} 51. Ra1 {[%emt 0:01:02]} Rf3+ {[%emt 0:01:51]} 52. Ke4 {[%emt 0:02:19]} Rxg3 {[%emt 0:00:11]} 53. Kd5 {[%emt 0:00:04]} Rf3 {[%emt 0:00:35]} 54. Kc6 {[%emt 0:00:37]} Rd8 {[%emt 0:01:19]} 55. Rg1+ {[%emt 0:00:58]} Kf4 {[%emt 0:00:31]} 56. Rdg2 {[%emt 0:00:10]} Rg8 {[%emt 0:00:07]} 57. Rg4+ {[%emt 0:00:14]} Kf5 {[%emt 0:00:10]} 58. Kxd6 {[%emt 0:00:24]} Rf4 {[%emt 0:00:46]} 59. R4g2 {[%emt 0:00:35]} e4 {[%emt 0:00:11]} 60. Kxc5 {[%emt 0:00:38]} e3 {[%emt 0:00:51]} 61. Kb6 {[%emt 0:02:30]} g4 {[%emt 0:00:38]} 62. c5 {[%emt 0:00:28]} Rf2 {[%emt 0:00:51]} 63. Rg3 {[%emt 0:00:50]} Kf4 {[%emt 0:02:05]} 64. c6 {[%emt 0:00:51]} Rxc2 {[%emt 0:01:12]} 65. b4 {[%emt 0:00:04]} e2 {[%emt 0:03:30]} 66. Rb3 {[%emt 0:00:55]} Rd2 {[%emt 0:00:14]} 67. Rbb1 {[%emt 0:02:07]} Rb8+ {[%emt 0:03:01]} 1/2-1/2

[Event "POL-chT DMP Ekstraliga 2019"]
[Site "Katowice"]
[Date "2019.08.31"]
[Round "4.26"]
[White "Czarnota, Pawel"]
[Black "Shevchenko, Kirill"]
[Result "1/2-1/2"]
[ECO "B90"]
[WhiteElo "2532"]
[BlackElo "2556"]
[Annotator "ChessBase"]
[PlyCount "70"]
[EventDate "2019.08.28"]
[EventType "team-tourn"]
[EventCountry "POL"]
[SourceTitle "playchess.com"]
[Source "ChessBase"]
[SourceQuality "1"]
[TimeControl "40/5400+30:1800+30"]

1. e4 {[%emt 0:00:00]} c5 {[%emt 0:00:00]} 2. Nf3 {[%emt 0:00:00]} d6 {[%emt 0:00:00]} 3. d4 {[%emt 0:00:03]} cxd4 {[%emt 0:00:00]} 4. Nxd4 {[%emt 0:00:05]} Nf6 {[%emt 0:00:00]} 5. Nc3 {[%emt 0:00:05]} a6 {[%emt 0:00:00]} 6. Be3 {[%emt 0:00:55]} e5 {[%emt 0:00:05]} 7. Nf3 {[%emt 0:00:38]} Be7 {[%emt 0:00:10]} 8. Bc4 {[%emt 0:00:34]} O-O {[%emt 0:00:14]} 9. O-O {[%emt 0:00:51]} Be6 {[%emt 0:00:12]} 10. Bb3 {[%emt 0:01:03]} b5 {[%emt 0:00:26]} 11. Bg5 {[%emt 0:11:14]} Nbd7 {[%emt 0:02:13]} 12. Bxf6 {[%emt 0:01:42]} Nxf6 {[%emt 0:02:04]} 13. Qd3 {[%emt 0:01:54]} Rc8 {[%emt 0:21:15]} 14. a3 Bc4 {[%emt 0:17:23]} 15. Bxc4 {[%emt 0:27:16]} bxc4 {[%emt 0:10:22]} 16. Qe2 {[%emt 0:02:18]} Qc7 {[%emt 0:01:02]} 17. Rfd1 {[%emt 0:04:44]} Rfd8 {[%emt 0:05:49]} 18. Rab1 {[%emt 0:04:35]} Qc6 {[%emt 0:05:45]} 19. Nd5 {[%emt 0:09:29]} Rd7 {[%emt 0:04:37]} 20. g3 Rb7 21. b4 {[%emt 0:04:10]} cxb3 {[%emt 0:03:02]} 22. cxb3 {[%emt 0:04:23]} Nxd5 {[%emt 0:02:19]} 23. Rxd5 {[%emt 0:00:07]} Qc2 {[%emt 0:06:53]} 24. Qxc2 {[%emt 0:05:30]} Rxc2 {[%emt 0:00:04]} 25. h4 {[%emt 0:00:07]} g6 {[%emt 0:01:39]} 26. Nd2 {[%emt 0:09:39]} Rb5 {[%emt 0:09:38]} 27. Rd3 {[%emt 0:05:59]} f5 {[%emt 0:01:34]} 28. Rd1 {[%emt 0:00:04]} d5 {[%emt 0:03:38]} 29. Rxd5 {[%emt 0:01:17]} Bxa3 {[%emt 0:00:35]} 30. Nc4 {[%emt 0:01:56]} Bc5 {[%emt 0:00:33]} 31. R1d2 {[%emt 0:00:22]} Rxd2 {[%emt 0:01:55]} 32. Nxd2 {[%emt 0:00:02]} Bb4 {[%emt 0:01:35]} 33. Nc4 {[%emt 0:01:41]} fxe4 {[%emt 0:00:33]} 34. Rxe5 {[%emt 0:00:55]} Rxe5 {[%emt 0:00:18]} 35. Nxe5 {[%emt 0:00:05]} Bc3 {[%emt 0:00:38]} 1/2-1/2

[Event "POL-chT DMP Ekstraliga 2019"]
[Site "Katowice"]
[Date "2019.08.31"]
[Round "4.27"]
[White "Kriebel, Tadeas"]
[Black "Olszewski, Michal"]
[Result "1/2-1/2"]
[ECO "C84"]
[WhiteElo "2531"]
[BlackElo "2522"]
[Annotator "ChessBase"]
[PlyCount "97"]
[EventDate "2019.08.28"]
[EventType "team-tourn"]
[EventCountry "POL"]
[SourceTitle "playchess.com"]
[Source "ChessBase"]
[SourceQuality "1"]
[TimeControl "40/5400+30:1800+30"]

1. e4 {[%emt 0:00:00]} e5 {[%emt 0:00:00]} 2. Nf3 {[%emt 0:00:00]} Nc6 {[%emt 0:00:00]} 3. Bb5 {[%emt 0:00:00]} a6 {[%emt 0:00:00]} 4. Ba4 {[%emt 0:00:00]} Nf6 {[%emt 0:00:00]} 5. O-O {[%emt 0:00:00]} Be7 {[%emt 0:00:00]} 6. d3 {[%emt 0:00:56]} b5 {[%emt 0:02:00]} 7. Bb3 {[%emt 0:00:04]} d6 {[%emt 0:00:41]} 8. a3 {[%emt 0:00:06]} O-O {[%emt 0:02:11]} 9. Nc3 {[%emt 0:00:38]} Na5 {[%emt 0:05:52]} 10. Ba2 {[%emt 0:00:30]} c5 {[%emt 0:00:04]} 11. Nd5 {[%emt 0:01:34]} Nxd5 {[%emt 0:05:18]} 12. Bxd5 {[%emt 0:01:16]} Bb7 {[%emt 0:02:52]} 13. Bxb7 {[%emt 0:00:12]} Nxb7 {[%emt 0:00:06]} 14. c3 {[%emt 0:00:16]} Bf6 {[%emt 0:04:34]} 15. Qb3 {[%emt 0:14:42]} Qd7 {[%emt 0:31:16]} 16. Qd5 {[%emt 0:01:07]} Rfc8 {[%emt 0:03:32]} 17. Be3 {[%emt 0:07:16]} Qc6 {[%emt 0:07:43]} 18. Qxc6 {[%emt 0:08:57]} Rxc6 {[%emt 0:00:44]} 19. Nd2 {[%emt 0:00:05]} Bd8 {[%emt 0:12:43]} 20. a4 {[%emt 0:08:25]} b4 {[%emt 0:01:26]} 21. cxb4 {[%emt 0:00:03]} cxb4 {[%emt 0:00:03]} 22. Rfc1 {[%emt 0:00:07]} Rac8 {[%emt 0:03:36]} 23. Rc4 {[%emt 0:01:00]} Na5 {[%emt 0:08:32]} 24. Rxb4 {[%emt 0:01:29]} Rc2 {[%emt 0:00:15]} 25. Kf1 {[%emt 0:05:30]} f5 {[%emt 0:05:39]} 26. exf5 {[%emt 0:06:48]} d5 {[%emt 0:00:03]} 27. Nf3 {[%emt 0:00:45]} Bf6 {[%emt 0:01:38]} 28. Rb6 {[%emt 0:10:02]} e4 {[%emt 0:00:31]} 29. dxe4 {[%emt 0:00:05]} Nc4 {[%emt 0:01:50]} 30. Re6 {[%emt 0:00:23]} Nxe3+ {[%emt 0:00:40]} 31. fxe3 {[%emt 0:00:06]} dxe4 {[%emt 0:00:05]} 32. Rxe4 {[%emt 0:01:20]} Rxb2 {[%emt 0:00:04]} 33. Rd1 {[%emt 0:00:42]} Rcc2 {[%emt 0:00:34]} 34. Rg4 {[%emt 0:05:04]} h5 {[%emt 0:00:06]} 35. Rg6 {[%emt 0:00:36]} Rf2+ {[%emt 0:00:37]} 36. Kg1 {[%emt 0:00:06]} Rfe2 {[%emt 0:00:09]} 37. h4 {[%emt 0:13:20]} Rb6 {[%emt 0:01:04]} 38. Rd7 {[%emt 0:09:19]} Kf8 {[%emt 0:01:27]} 39. Rd3 {[%emt 0:02:50]} a5 {[%emt 0:00:52]} 40. Rd5 {[%emt 0:00:00]} Rb1+ {[%emt 0:00:00]} 41. Kh2 {[%emt 0:01:51]} Rxe3 {[%emt 0:03:29]} 42. Rxa5 {[%emt 0:01:19]} Rb4 {[%emt 0:04:52]} 43. Ra8+ {[%emt 0:02:30]} Re8 {[%emt 0:04:45]} 44. Ra7 {[%emt 0:08:09]} Rf4 {[%emt 0:01:39]} 45. a5 {[%emt 0:07:00]} Rxf5 {[%emt 0:00:49]} 46. a6 {[%emt 0:06:15]} Re7 {[%emt 0:04:55]} 47. Ra8+ {[%emt 0:01:02]} Re8 {[%emt 0:00:05]} 48. Ra7 {[%emt 0:00:47]} Re7 {[%emt 0:00:05]} 49. Ra8+ {[%emt 0:03:31]} 1/2-1/2

[Event "POL-chT DMP Ekstraliga 2019"]
[Site "Katowice"]
[Date "2019.08.31"]
[Round "4.28"]
[White "Warakomski, Tomasz"]
[Black "Simacek, Pavel"]
[Result "1-0"]
[ECO "C50"]
[WhiteElo "2497"]
[BlackElo "2479"]
[Annotator "ChessBase"]
[PlyCount "65"]
[EventDate "2019.08.28"]
[EventType "team-tourn"]
[EventCountry "POL"]
[SourceTitle "playchess.com"]
[Source "ChessBase"]
[SourceQuality "1"]
[TimeControl "40/5400+30:1800+30"]

1. e4 {[%emt 0:00:00]} e5 {[%emt 0:00:00]} 2. Nf3 {[%emt 0:00:00]} Nc6 {[%emt 0:00:00]} 3. Bc4 {[%emt 0:00:00]} Nf6 {[%emt 0:00:00]} 4. d3 {[%emt 0:00:00]} Bc5 {[%emt 0:00:08]} 5. c3 {[%emt 0:00:49]} d6 {[%emt 0:00:39]} 6. O-O {[%emt 0:00:31]} a6 {[%emt 0:00:21]} 7. h3 {[%emt 0:04:08]} Ba7 {[%emt 0:01:21]} 8. a4 {[%emt 0:00:27]} h6 {[%emt 0:01:11]} 9. b4 {[%emt 0:03:44]} g5 {[%emt 0:03:28]} 10. Be3 {[%emt 0:18:39]} g4 {[%emt 0:01:09]} 11. hxg4 {[%emt 0:03:29]} Nxg4 {[%emt 0:00:15]} 12. Bxa7 {[%emt 0:00:41]} Rxa7 {[%emt 0:00:26]} 13. d4 {[%emt 0:13:08]} Qf6 {[%emt 0:02:32]} 14. b5 {[%emt 0:10:37]} Ne7 {[%emt 0:16:17]} 15. b6 {[%emt 0:02:34]} cxb6 {[%emt 0:00:07]} 16. Qb3 {[%emt 0:00:02]} Ng6 {[%emt 0:00:17]} 17. Qxb6 {[%emt 0:04:55]} Nh4 {[%emt 0:02:27]} 18. Nbd2 {[%emt 0:00:16]} Nxg2 {[%emt 0:01:11]} 19. Kxg2 {[%emt 0:05:21]} Ra8 {[%emt 0:51:17]} 20. Rg1 {[%emt 0:03:08]} h5 {[%emt 0:02:39]} 21. Kf1 {[%emt 0:02:02]} Qf4 {[%emt 0:04:36]} 22. Qxd6 {[%emt 0:07:00]} Rh6 {[%emt 0:00:14]} 23. Qd5 {[%emt 0:01:36]} Be6 {[%emt 0:08:11]} 24. Qxb7 {[%emt 0:00:43]} Bxc4+ {[%emt 0:01:30]} 25. Nxc4 {[%emt 0:00:04]} Qxf3 {[%emt 0:00:41]} 26. Qxa8+ {[%emt 0:00:06]} Ke7 {[%emt 0:00:03]} 27. Qb7+ {[%emt 0:05:15]} Kf8 {[%emt 0:00:05]} 28. Qb8+ {[%emt 0:00:35]} Ke7 {[%emt 0:00:57]} 29. Qc7+ {[%emt 0:02:42]} Kf8 {[%emt 0:00:30]} 30. Rg2 {[%emt 0:00:44]} Rf6 {[%emt 0:01:00]} 31. Kg1 {[%emt 0:00:56]} Qxc3 {[%emt 0:00:59]} 32. Rf1 {[%emt 0:03:46]} Kg7 {[%emt 0:00:47]} 33. Qxe5 {[%emt 0:02:20]} 1-0

[Event "POL-chT DMP Ekstraliga 2019"]
[Site "Katowice"]
[Date "2019.08.31"]
[Round "4.29"]
[White "Bobras, Piotr"]
[Black "Kantans, Toms"]
[Result "1-0"]
[ECO "B94"]
[WhiteElo "2488"]
[BlackElo "2490"]
[Annotator "ChessBase"]
[PlyCount "59"]
[EventDate "2019.08.28"]
[EventType "team-tourn"]
[EventCountry "POL"]
[SourceTitle "playchess.com"]
[Source "ChessBase"]
[SourceQuality "1"]
[TimeControl "40/5400+30:1800+30"]

1. e4 {[%emt 0:00:00]} c5 {[%emt 0:00:00]} 2. Nf3 {[%emt 0:00:00]} d6 {[%emt 0:00:02]} 3. d4 {[%emt 0:00:00]} cxd4 {[%emt 0:00:04]} 4. Nxd4 {[%emt 0:00:00]} Nf6 {[%emt 0:00:06]} 5. Nc3 {[%emt 0:00:00]} a6 {[%emt 0:00:05]} 6. Bg5 {[%emt 0:00:01]} Nbd7 {[%emt 0:00:42]} 7. Bc4 {[%emt 0:00:10]} Qb6 {[%emt 0:00:11]} 8. Bb3 {[%emt 0:00:35]} e6 {[%emt 0:00:55]} 9. O-O {[%emt 0:02:04]} Be7 {[%emt 0:02:47]} 10. Kh1 {[%emt 0:05:28]} Nc5 {[%emt 0:02:19]} 11. Qe2 {[%emt 0:10:48]} O-O {[%emt 0:11:24]} 12. f4 {[%emt 0:14:43]} h6 {[%emt 0:21:31]} 13. Bh4 {[%emt 0:04:22]} Re8 {[%emt 0:03:06]} 14. e5 {[%emt 0:09:24]} Nd5 {[%emt 0:05:32]} 15. Nxd5 {[%emt 0:12:48]} exd5 {[%emt 0:00:05]} 16. Bxe7 {[%emt 0:01:25]} Nxb3 {[%emt 0:00:21]} 17. axb3 {[%emt 0:00:52]} Rxe7 {[%emt 0:00:55]} 18. Qf2 {[%emt 0:02:38]} Re8 {[%emt 0:06:22]} 19. c3 {[%emt 0:08:55]} Bd7 {[%emt 0:05:56]} 20. Qf3 {[%emt 0:00:32]} Rad8 {[%emt 0:03:38]} 21. Rae1 {[%emt 0:04:23]} a5 {[%emt 0:09:37]} 22. h3 {[%emt 0:03:50]} Re7 {[%emt 0:05:10]} 23. Re3 {[%emt 0:02:07]} Qc5 {[%emt 0:09:20]} 24. Qh5 {[%emt 0:02:34]} Qc7 {[%emt 0:03:33]} 25. f5 {[%emt 0:03:44]} Rxe5 {[%emt 0:04:46]} 26. Rg3 {[%emt 0:00:10]} f6 {[%emt 0:03:12]} 27. Rxg7+ {[%emt 0:03:06]} Kxg7 {[%emt 0:00:02]} 28. Qg6+ {[%emt 0:00:05]} Kf8 {[%emt 0:00:17]} 29. Qxf6+ {[%emt 0:00:17]} Kg8 {[%emt 0:00:37]} 30. Qg6+ {[%emt 0:00:09]} 1-0

[Event "POL-chT DMP Ekstraliga 2019"]
[Site "Katowice"]
[Date "2019.08.31"]
[Round "4.30"]
[White "Warakomska, Anna"]
[Black "Kiolbasa, Oliwia"]
[Result "1/2-1/2"]
[ECO "C54"]
[WhiteElo "2241"]
[BlackElo "2244"]
[Annotator "NA"]
[PlyCount "81"]
[EventDate "2019.08.28"]
[EventType "team-tourn"]
[EventCountry "POL"]
[SourceTitle "playchess.com"]
[Source "ChessBase"]
[SourceQuality "1"]
[TimeControl "40/5400+30:1800+30"]

1. e4 {[%emt 0:00:00]} e5 {[%emt 0:00:00]} 2. Nf3 {[%emt 0:00:00]} Nc6 {[%emt 0:00:00]} 3. Bc4 {[%emt 0:00:00]} Bc5 {[%emt 0:00:08]} 4. c3 {[%emt 0:00:00]} Nf6 {[%emt 0:00:14]} 5. d4 {[%emt 0:00:06]} exd4 {[%emt 0:00:23]} 6. e5 {[%emt 0:00:20]} d5 {[%emt 0:00:25]} 7. Bb5 {[%emt 0:00:05]} Ne4 {[%emt 0:00:09]} 8. cxd4 {[%emt 0:00:07]} Bb6 {[%emt 0:00:15]} 9. Nc3 {[%emt 0:00:15]} O-O {[%emt 0:07:45]} 10. Be3 {[%emt 0:00:39]} Nxc3 {[%emt 0:07:06]} 11. bxc3 {[%emt 0:00:08]} f6 {[%emt 0:00:04]} 12. O-O {[%emt 0:07:49]} fxe5 {[%emt 0:12:32]} 13. Bxc6 {[%emt 0:01:31]} bxc6 {[%emt 0:00:07]} 14. Nxe5 {[%emt 0:00:17]} Qd6 {[%emt 0:00:28]} 15. a4 {[%emt 0:26:25]} a5 {[%emt 0:05:44]} 16. Bc1 {[%emt 0:09:27]} Qf6 {[%emt 0:04:07]} 17. Ba3 {[%emt 0:01:23]} Re8 {[%emt 0:07:36]} 18. Re1 {[%emt 0:06:35]} Bf5 {[%emt 0:13:56]} 19. Qf3 {[%emt 0:07:57]} Bc2 {[%emt 0:06:29]} 20. Qg4 {[%emt 0:17:53]} Bf5 {[%emt 0:05:33]} 21. Qg3 {[%emt 0:02:37]} Be4 {[%emt 0:02:01]} 22. Re3 {[%emt 0:01:26]} Re6 {[%emt 0:04:26]} 23. Rae1 {[%emt 0:00:15]} Qf5 {[%emt 0:04:52]} 24. Ng4 {[%emt 0:09:22]} h5 {[%emt 0:11:26]} 25. f3 {[%emt 0:00:14]} hxg4 {[%emt 0:00:08]} 26. fxe4 {[%emt 0:00:05]} Rxe4 {[%emt 0:00:06]} 27. Rxe4 {[%emt 0:01:47]} dxe4 {[%emt 0:00:02]} 28. Rf1 {[%emt 0:00:30]} Qe6 {[%emt 0:00:49]} 29. Qe3 {[%emt 0:01:22]} Re8 {[%emt 0:00:44]} 30. Bc1 {[%emt 0:03:45]} Rf8 {[%emt 0:01:21]} 31. Rxf8+ {[%emt 0:00:31]} Kxf8 {[%emt 0:00:02]} 32. Qf4+ {[%emt 0:00:32]} Kg8 {[%emt 0:01:18]} 33. Be3 {[%emt 0:00:11]} Qc4 {[%emt 0:02:37]} 34. Qxe4 {[%emt 0:01:40]} Qxc3 {[%emt 0:00:06]} 35. Kf2 {[%emt 0:00:44]} Qc4 {[%emt 0:00:49]} 36. Qe8+ {[%emt 0:00:27]} Kh7 {[%emt 0:00:05]} 37. Qh5+ {[%emt 0:00:04]} Kg8 {[%emt 0:00:04]} 38. Qe8+ {[%emt 0:01:26]} Kh7 {[%emt 0:00:05]} 39. Qh5+ {[%emt 0:00:26]} Kg8 {[%emt 0:00:05]} 40. Qxg4 {[%emt 0:00:00]} Qxa4 {[%emt 0:00:00]} 41. Qc8+ {[%emt 0:07:59]} 1/2-1/2